bitfinex-derivatives/quotes_ETHF0:USTF0_20250912
["timestamp","ask_amount","ask_price","bid_price","bid_amount"]
[1757712538623,0.217,4660.5,4660.4,1.0971]
[1757712541019,0.85843478,4660.5,4660.4,1.0971]
[1757712542935,0.85843478,4660.5,4660.4,0.4548]
[1757712543127,4.85843478,4660.5,4660.4,0.4548]
[1757712544327,4.85878373,4660.5,4660.4,0.4548]
[1757712544826,4.85878373,4660.5,4659.0,0.1604]
[1757712544827,4.85878373,4660.5,4659.6,0.4718]
[1757712545026,0.4856,4659.0,4658.9,0.3274]
[1757712545324,5.39762039,4659.0,4658.0,0.1955]
[1757712545524,4.3394,4658.1,4658.0,0.6423]
[1757712545727,5.37929242,4658.1,4658.0,0.8378]
[1757712546033,5.19842039,4658.1,4658.0,0.8378]
[1757712546933,4.71282039,4658.1,4658.0,0.8378]
[1757712547131,4.71282039,4658.1,4658.0,1.3096]
[1757712548331,4.06682039,4658.1,4658.0,1.3096]
[1757712548732,0.64202039,4658.1,4658.0,1.3096]
[1757712549130,3.2078,4658.6,4658.5,1.3096]
[1757712549329,3.847679,4658.6,4658.5,1.3096]
[1757712549527,3.2078,4658.6,4658.5,1.3096]
[1757712550333,3.2078,4659.2,4659.1,1.1141]
[1757712550540,4.06433403,4659.2,4659.1,1.1141]
[1757712551244,4.38713403,4659.2,4659.1,1.1141]
[1757712551440,3.84733403,4659.2,4659.1,1.1141]
[1757712551641,4.06433403,4659.2,4659.1,1.1141]
[1757712552039,4.38713403,4659.2,4659.1,1.1141]
[1757712553340,4.87273403,4659.2,4659.1,1.1141]
[1757712555549,5.19593403,4659.2,4659.1,1.1141]
[1757712555943,4.97893403,4659.2,4659.1,1.1141]
[1757712556249,5.19593403,4659.2,4659.1,1.1141]
[1757712557548,3.84733403,4659.2,4659.1,1.1141]
[1757712557751,4.06433403,4659.2,4659.1,1.1141]
[1757712558048,3.4248,4659.2,4659.1,1.1141]
[1757712558549,0.217,4659.3,4659.2,0.4718]
[1757712558848,0.85639701,4659.3,4659.2,1.1141]
[1757712559350,0.217,4659.3,4659.2,1.1141]
[1757712560441,0.85602515,4659.3,4659.2,1.1141]
[1757712560848,0.217,4659.3,4659.2,1.1141]
[1757712561048,0.4856,4660.0,4659.6,0.6423]
[1757712561244,1.1316,4659.8,4659.7,1.1141]
[1757712569560,0.217,4659.9,4659.8,1.1237]
[1757712569755,0.5298,4659.9,4659.8,1.1237]
[1757712569961,1.0247,4659.9,4659.8,1.1237]
[1757712570156,1.3601,4659.9,4659.8,1.1237]
[1757712571661,1.3601,4659.9,4659.1,0.499]
[1757712571857,1.3601,4659.9,4659.1,1.1237]
[1757712571858,0.3128,4659.2,4659.1,1.1237]
[1757712572164,0.8077,4659.2,4659.1,1.1237]
[1757712572665,0.3128,4659.2,4659.1,1.1237]
[1757712573163,0.8077,4659.2,4659.1,1.1237]
[1757712577767,0.7119,4659.6,4659.1,1.1237]
[1757712577962,0.4949,4659.5,4659.2,0.499]
[1757712578162,0.8077,4659.5,4659.4,0.6247]
[1757712578362,3.2078,4659.7,4659.4,1.1237]
[1757712578668,0.0643,4660.0,4659.7,0.499]
[1757712578871,0.0643,4660.0,4659.9,1.1237]
[1757712579167,0.70605209,4660.0,4659.9,1.1237]
[1757712579568,0.7062363,4660.0,4659.9,5.1237]
[1757712579769,0.0643,4660.0,4659.9,5.1237]
[1757712580163,0.4949,4661.0,4660.9,0.6247]
[1757712580465,0.64204316,4661.0,4660.9,0.6247]
[1757712580666,1.0247,4661.1,4661.0,1.3092]
[1757712580867,1.66658247,4661.1,4661.0,1.3092]
[1757712581565,0.64188247,4661.1,4661.0,1.3092]
[1757712582467,3.2078,4661.2,4661.1,0.499]
[1757712583070,3.2078,4661.2,4661.1,1.1237]
[1757712585268,0.4949,4661.4,4661.1,1.1237]
[1757712585469,0.217,4661.6,4661.2,0.499]
[1757712585662,0.6282,4661.4,4661.3,1.1307]
[1757712585861,1.1281,4661.4,4661.3,1.1307]
[1757712593772,3.2078,4661.7,4661.6,1.1307]
[1757712593971,3.2078,4661.7,4661.5,0.1889]
[1757712593972,0.8826,4662.1,4662.0,1.3196]
[1757712594378,1.0353,4662.1,4662.0,1.3196]
[1757712594774,0.8183,4662.1,4662.0,1.3196]
[1757712594971,1.1281,4662.1,4662.0,1.3196]
[1757712596477,0.8183,4662.4,4662.3,1.1307]
[1757712596678,1.1281,4662.4,4662.3,1.1307]
[1757712602186,1.1281,4662.4,4662.3,0.8178]
[1757712602390,1.1281,4662.4,4661.6,0.484]
[1757712602586,0.4761,4662.3,4661.7,0.484]
[1757712602887,1.0994,4662.3,4661.3,3.2078]
[1757712603186,0.3062,4661.5,4661.4,1.1123]
[1757712603387,1.0994,4661.5,4661.4,1.1123]
[1757712603584,0.1976,4661.0,4660.7,0.484]
[1757712603792,1.0994,4660.8,4660.7,0.3101]
[1757712603991,0.1976,4661.0,4659.5,3.2078]
[1757712603992,0.1976,4660.0,4659.5,3.2078]
[1757712604189,0.3062,4659.2,4659.1,0.7941]
[1757712604390,1.0994,4659.2,4659.1,1.1123]
[1757712604588,0.4761,4659.5,4659.1,1.1123]
[1757712604788,0.7823,4659.5,4659.4,0.6283]
[1757712604989,0.7823,4659.5,4659.4,1.1123]
[1757712606291,1.0994,4659.5,4659.4,1.1123]
[1757712606690,1.0994,4659.4,4659.3,0.8923]
[1757712607094,1.0994,4659.4,4659.3,1.2024]
[1757712607293,1.0994,4659.4,4659.3,2.0046]
[1757712607490,1.0994,4659.4,4659.3,0.8923]
[1757712608092,1.0994,4659.4,4659.3,1.2024]
[1757712609096,1.0994,4659.4,4659.3,1.6864]
[1757712609596,1.0994,4659.4,4659.3,2.0046]
[1757712609993,1.0994,4659.4,4659.3,0.8923]
[1757712610200,5.31402,4659.4,4659.3,0.8923]
[1757712610895,5.31402,4659.4,4658.0,0.1793]
[1757712611101,0.2514,4658.1,4658.0,0.6633]
[1757712611394,3.5378,4658.1,4657.5,0.1793]
[1757712611604,3.4592,4658.1,4658.0,0.9734]
[1757712611902,3.5378,4658.1,4658.0,0.6633]
[1757712612799,3.4592,4658.1,4658.0,0.9734]
[1757712612992,3.6772,4658.1,4658.0,1.2916]
[1757712613398,3.7558,4658.1,4658.0,0.6633]
[1757712613792,3.6772,4658.1,4658.0,0.9734]
[1757712613992,3.6772,4658.1,4658.0,1.2916]
[1757712616296,3.3335,4658.1,4658.0,1.2916]
[1757712616492,3.2078,4658.1,4658.0,1.2916]
[1757712617695,3.4592,4658.1,4658.0,0.9734]
[1757712618103,0.2514,4658.1,4658.0,1.2916]
[1757712618693,0.218,4658.2,4658.0,1.2916]
[1757712618905,0.218,4658.2,4658.1,1.1123]
[1757712619405,0.3437,4658.2,4658.1,1.1123]
[1757712620603,0.1257,4658.2,4658.1,1.1123]
[1757712620806,0.218,4658.4,4658.1,1.1123]
[1757712621003,0.218,4658.4,4658.0,0.1793]
[1757712621004,0.218,4658.4,4658.2,0.484]
[1757712621205,3.2078,4658.6,4658.3,1.1123]
[1757712621405,0.218,4658.5,4658.4,0.484]
[1757712621599,0.3437,4658.5,4658.4,0.7941]
[1757712621799,0.218,4658.5,4658.4,1.1123]
[1757712623406,0.3437,4658.5,4658.4,1.1123]
[1757712624311,0.218,4658.5,4658.4,1.1123]
[1757712624806,0.3437,4658.5,4658.4,1.1123]
[1757712625306,0.218,4658.5,4658.4,1.1123]
[1757712627110,3.2078,4658.6,4658.5,0.7981]
[1757712627302,3.6482,4658.6,4658.5,1.266]
[1757712629507,3.2078,4658.6,4658.5,1.266]
[1757712629709,0.3292,4658.8,4658.7,0.6161]
[1757712629905,0.5099,4658.8,4658.7,0.4679]
[1757712632614,0.5099,4658.8,4658.2,0.4532]
[1757712632615,0.2224,4658.3,4658.2,0.4532]
[1757712632816,3.7177,4658.3,4658.2,0.4679]
[1757712633216,3.7177,4658.3,4658.0,0.1793]
[1757712633518,0.2224,4658.1,4658.0,0.9604]
[1757712633716,0.4404,4658.1,4658.0,1.2633]
[1757712633919,0.3292,4658.1,4658.0,1.2633]
[1757712634118,0.218,4658.1,4658.0,1.2633]
[1757712634421,0.3292,4658.1,4658.0,1.2633]
[1757712636020,3.2078,4658.3,4658.1,0.4679]
[1757712636215,0.218,4658.2,4658.1,1.084]
[1757712636516,0.63231205,4658.2,4658.1,1.084]
[1757712636717,0.218,4658.2,4658.1,1.084]
[1757712637419,0.85063341,4658.2,4658.1,1.084]
[1757712638016,0.0643,4659.0,4658.1,5.084]
[1757712638017,0.218,4658.7,4658.1,5.084]
[1757712638215,0.63094259,4658.6,4658.5,0.7981]
[1757712638620,0.63094259,4658.6,4658.5,1.266]
[1757712639121,0.0643,4659.0,4658.9,1.084]
[1757712639518,3.4258,4659.4,4659.3,0.6161]
[1757712639724,3.4258,4659.4,4659.3,1.084]
[1757712639926,3.2078,4659.4,4659.3,1.084]
[1757712640222,4.3196,4659.4,4659.3,1.084]
[1757712640417,4.5376,4659.4,4659.0,0.4679]
[1757712640914,4.5376,4659.4,4658.6,0.4679]
[1757712641317,4.5376,4659.4,4659.3,0.3132]
[1757712641519,4.5376,4659.4,4659.3,0.7811]
[1757712643619,4.5376,4659.4,4658.6,0.4679]
[1757712645417,4.5376,4659.4,4659.3,0.7811]
[1757712647120,4.0578,4659.4,4659.3,1.084]
[1757712647328,3.5234,4659.4,4659.3,1.084]
[1757712648231,0.378,4659.8,4659.7,0.6196]
[1757712648424,1.1863,4659.8,4659.7,1.076]
[1757712648621,1.122,4659.8,4659.7,1.076]
[1757712649027,1.122,4659.8,4659.1,0.4564]
[1757712649220,4.3298,4659.2,4658.5,0.182]
[1757712649421,4.3298,4659.2,4658.6,0.4564]
[1757712650930,0.3137,4658.6,4658.5,0.8016]
[1757712651231,1.122,4658.6,4658.5,0.8016]
[1757712651527,1.122,4658.6,4658.5,1.258]
[1757712654835,1.122,4658.6,4658.5,0.7666]
[1757712658237,1.122,4658.6,4657.9,0.4529]
[1757712658238,1.122,4658.6,4658.1,0.4521]
[1757712658541,1.122,4658.6,4657.9,0.4529]
[1757712658730,1.122,4658.6,4658.1,0.4521]
[1757712659036,0.4426,4658.5,4658.1,0.4521]
[1757712659236,1.0805,4658.5,4658.4,0.7662]
[1757712660237,1.0805,4658.5,4658.4,1.0817]
[1757712660837,0.6379,4658.5,4658.4,1.0817]
[1757712661235,1.0805,4658.5,4658.4,1.0817]
[1757712661431,1.231,4658.5,4658.1,0.4521]
[1757712661633,0.7884,4658.5,4657.9,0.4529]
[1757712661834,0.7654,4658.4,4658.3,0.3141]
[1757712662038,1.0805,4658.4,4658.3,0.7662]
[1757712663037,1.0805,4658.4,4658.3,1.0817]
[1757712666946,1.0805,4658.4,4658.3,0.4521]
[1757712667248,1.0805,4658.4,4658.3,0.7662]
[1757712668347,1.0805,4658.4,4658.3,1.0817]
[1757712668542,0.6379,4658.4,4658.3,1.0817]
[1757712668743,0.3151,4658.6,4658.5,0.1785]
[1757712669040,3.4258,4658.7,4658.5,0.8081]
[1757712669233,3.4258,4658.7,4658.6,0.4521]
[1757712669438,3.4258,4658.7,4658.6,1.0817]
[1757712670145,4.5063,4658.7,4658.6,1.0817]
[1757712670742,4.2883,4658.7,4658.6,1.0817]
[1757712671042,0.6379,4658.7,4658.6,1.0817]
[1757712671944,0.4426,4659.0,4658.7,0.4521]
[1757712672244,0.3794,4659.1,4659.0,1.2602]
[1757712673443,1.1448,4659.1,4659.0,1.2602]
[1757712673642,1.1448,4659.1,4659.0,1.0817]
[1757712673842,1.1448,4659.1,4659.0,0.7662]
[1757712674244,1.1448,4659.1,4658.6,0.4521]
[1757712674438,1.1448,4659.1,4658.5,0.1785]
[1757712674635,1.1448,4659.1,4658.6,0.4521]
[1757712675145,4.2883,4658.7,4658.6,0.4521]
[1757712675845,4.2883,4658.7,4658.6,0.7662]
[1757712676247,0.4426,4658.6,4658.1,0.4521]
[1757712676448,1.0805,4658.2,4658.1,1.0817]
[1757712676945,0.6379,4658.2,4658.1,1.0817]
[1757712678146,1.0805,4658.2,4658.1,1.0817]
[1757712678646,0.3151,4658.2,4658.1,1.0817]
[1757712684955,0.0643,4658.4,4658.1,1.0817]
[1757712685150,0.0643,4658.4,4658.3,1.0817]
[1757712685650,0.3794,4658.4,4658.3,1.0817]
[1757712686156,1.1448,4658.4,4658.3,1.0817]
[1757712686653,0.3794,4658.4,4658.3,1.0817]
[1757712688556,1.1438,4658.4,4658.3,1.0817]
[1757712688756,0.7025,4658.4,4658.3,1.0817]
[1757712694261,1.1438,4658.4,4658.3,1.0817]
[1757712696855,1.1438,4658.4,4658.3,1.5329]
[1757712698262,0.7025,4658.4,4658.3,1.5329]
[1757712698462,1.1438,4658.4,4658.3,1.5329]
[1757712704665,0.6382,4658.4,4658.3,1.5329]
[1757712706664,1.0867,4658.4,4658.3,0.9033]
[1757712706970,1.0867,4658.4,4658.3,0.4512]
[1757712707170,1.71290769,4658.4,4658.3,0.4512]
[1757712708170,1.0867,4658.4,4658.3,0.4512]
[1757712708769,1.71266986,4658.4,4658.3,1.1787]
[1757712708973,1.71266986,4658.4,4658.3,1.4702]
[1757712709472,1.71266986,4658.4,4658.3,0.4512]
[1757712709666,5.92733986,4658.4,4658.3,0.4512]
[1757712709873,5.71266986,4658.4,4658.3,0.4512]
[1757712712471,5.71266986,4658.4,4658.3,1.1787]
[1757712712973,5.71266986,4658.4,4658.3,0.8911]
[1757712713172,5.71266986,4658.4,4658.3,0.4512]
[1757712713469,5.71266986,4658.4,4658.3,0.8911]
[1757712713670,5.92966986,4658.4,4658.3,0.8911]
[1757712714071,5.92966986,4658.4,4658.3,0.4512]
[1757712714461,5.71266986,4658.4,4658.3,0.4512]
[1757712714669,5.92966986,4658.4,4658.3,0.4512]
[1757712715171,6.13213638,4658.4,4658.3,0.4512]
[1757712716866,6.13213638,4658.4,4658.3,1.1744]
[1757712717173,2.13213638,4658.4,4658.3,1.1744]
[1757712718176,1.92966986,4658.4,4658.3,1.1744]
[1757712718376,1.92966986,4658.4,4658.3,1.4677]
[1757712718678,1.15806986,4658.4,4658.3,1.4677]
[1757712719078,1.90216986,4658.4,4658.3,0.4512]
[1757712719480,1.90216986,4658.4,4658.3,0.8904]
[1757712720678,1.90216986,4658.4,4658.3,0.4512]
[1757712720978,1.90124933,4658.4,4658.3,0.4512]
[1757712721180,1.90124933,4658.4,4658.3,0.8904]
[1757712723582,2.08940752,4658.4,4658.3,0.8904]
[1757712723783,2.08940752,4658.4,4658.3,0.4512]
[1757712724181,1.90124933,4658.4,4658.3,0.4512]
[1757712725085,2.08934445,4658.4,4658.3,0.4512]
[1757712726778,1.43284445,4658.4,4658.3,1.4677]
[1757712726980,1.90224933,4658.4,4658.3,0.4512]
[1757712729389,2.09026639,4658.4,4658.3,0.4512]
[1757712729589,1.90224933,4658.4,4658.3,0.4512]
[1757712730189,2.09026783,4658.4,4658.3,0.4512]
[1757712735098,2.09026783,4658.4,4658.3,0.8904]
[1757712735398,2.09026783,4658.4,4658.3,0.4512]
[1757712741897,1.90224933,4658.4,4658.3,0.4512]
[1757712748107,5.90224933,4658.4,4657.4,0.4465]
[1757712748307,3.8013,4657.5,4657.4,1.0179]
[1757712748506,4.64334933,4657.5,4657.4,1.0179]
[1757712749005,4.35224933,4657.5,4657.4,1.0179]
[1757712749206,4.04984933,4657.5,4657.4,1.0179]
[1757712749504,4.35224933,4657.5,4657.4,1.0179]
[1757712750204,4.04984933,4657.5,4657.4,1.0179]
[1757712750902,4.35224933,4657.5,4657.4,1.0179]
[1757712751104,4.04984933,4657.5,4657.4,1.0179]
[1757712751697,4.35224933,4657.5,4657.4,1.0179]
[1757712753503,4.64334933,4657.5,4657.4,0.4465]
[1757712753809,4.83394933,4657.5,4657.4,0.7333]
[1757712754406,4.64334933,4657.5,4657.4,0.7333]
[1757712754908,4.64334933,4657.5,4657.4,1.0179]
[1757712756308,4.64334933,4657.5,4656.0,0.176]
[1757712756506,0.5935,4656.7,4656.0,0.176]
[1757712756805,0.7841,4656.7,4656.6,0.7333]
[1757712757004,4.0183,4656.7,4656.6,0.7333]
[1757712757807,4.0183,4656.7,4656.6,1.0179]
[1757712758209,4.2089,4656.7,4656.6,0.4465]
[1757712758607,4.0183,4656.7,4656.6,0.7333]
[1757712758811,3.7272,4656.7,4656.6,1.0179]
[1757712759808,3.5102,4656.7,4656.6,1.0179]
[1757712760014,3.4248,4656.7,4656.6,1.0179]
[1757712761412,4.0183,4656.7,4656.6,1.0179]
[1757712761813,3.4248,4656.7,4656.6,1.0179]
[1757712763208,4.0183,4656.7,4656.6,1.0179]
[1757712764314,4.2089,4656.7,4656.6,1.0179]
[1757712764513,4.0183,4656.7,4656.6,1.0179]
[1757712766219,4.2029,4656.7,4656.6,0.4465]
[1757712766715,4.0183,4656.7,4656.6,1.0288]
[1757712770115,3.7272,4656.7,4656.6,1.0288]
[1757712770322,3.4248,4656.7,4656.6,1.0288]
[1757712774220,3.7202,4656.7,4656.6,1.0288]
[1757712775620,4.2002,4656.7,4656.6,0.4465]
[1757712775825,4.2002,4656.7,4656.0,0.176]
[1757712776024,0.2954,4656.2,4656.1,1.0007]
[1757712778024,3.5032,4656.2,4656.1,1.0007]
[1757712781327,3.7861,4656.2,4656.1,1.0007]
[1757712789235,3.9651,4656.2,4656.1,1.0007]
[1757712789534,3.7861,4656.2,4656.1,1.0007]
[1757712790237,3.9651,4656.2,4656.1,1.0007]
[1757712790636,3.9651,4656.2,4656.1,0.6963]
[1757712791432,3.9651,4656.2,4656.1,0.4184]
[1757712792333,3.9651,4656.2,4656.1,0.6999]
[1757712793736,3.9651,4656.2,4656.1,0.4184]
[1757712795336,3.9651,4656.2,4655.5,0.1795]
[1757712795536,0.5675,4655.6,4655.5,0.5927]
[1757712795737,0.9635,4655.6,4655.5,0.5927]
[1757712796743,0.9635,4655.6,4655.5,0.8742]
[1757712798038,0.9635,4655.6,4655.5,0.5927]
[1757712798346,0.9635,4655.6,4655.5,0.4132]
[1757712799642,0.9635,4655.6,4655.5,0.5917]
[1757712800438,0.9635,4655.6,4655.5,0.8732]
[1757712803034,0.9635,4655.6,4655.0,0.1795]
[1757712803238,3.7753,4655.1,4655.0,1.1516]
[1757712803443,3.4248,4655.1,4655.0,1.1516]
[1757712807344,3.7094,4655.1,4655.0,1.1516]
[1757712808146,3.9716,4655.1,4655.0,1.1516]
[1757712809253,4.1355,4655.1,4655.0,0.8742]
[1757712810255,3.9716,4655.1,4655.0,0.8742]
[1757712814957,3.9716,4655.1,4655.0,1.1493]
[1757712818561,3.687,4655.1,4655.0,1.1493]
[1757712818857,3.4248,4655.1,4655.0,1.1493]
[1757712819755,3.2078,4655.1,4655.0,1.1493]
[1757712825565,3.47,4655.1,4655.0,1.1493]
[1757712827760,3.7163,4655.1,4655.0,1.1493]
[1757712831485,3.8702,4655.1,4655.0,0.8808]
[1757712834977,3.7163,4655.1,4655.0,0.8808]
[1757712836284,3.8702,4655.1,4655.0,0.8808]
[1757712838489,3.7163,4655.1,4655.0,0.8808]
[1757712839288,3.8653,4655.1,4655.0,0.8808]
[1757712839489,3.8653,4655.1,4655.0,0.4132]
[1757712841686,3.8653,4655.1,4654.5,0.1691]
[1757712841892,0.6258,4654.7,4654.6,0.4]
[1757712842091,0.6258,4654.7,4654.6,0.6678]
[1757712842293,0.6258,4654.7,4654.6,0.4]
[1757712844192,0.4768,4654.7,4654.6,0.939]
[1757712860406,0.2384,4654.7,4654.6,0.939]
[1757712864406,0.4768,4654.7,4654.6,0.939]
[1757712865016,0.50639427,4654.7,4654.6,0.939]
[1757712867918,0.26799427,4654.7,4654.6,0.939]
[1757712877830,0.02959427,4654.7,4654.6,0.939]
[1757712892838,4.64363427,4654.7,4654.6,0.6678]
[1757712893037,4.76833427,4654.7,4654.6,0.4]
[1757712893433,5.3679749,4654.7,4654.6,0.4]
[1757712894238,0.1996,4653.7,4653.6,0.964]
[1757712894433,3.6244,4653.7,4653.6,0.964]
[1757712894637,4.22382627,4653.7,4653.6,0.964]
[1757712894840,4.42342627,4653.7,4653.6,0.964]
[1757712895038,4.45302054,4653.7,4653.6,0.964]
[1757712895240,3.85359427,4653.7,4653.6,0.964]
[1757712895440,8.66730685,4653.7,4653.6,0.964]
[1757712895639,4.45241685,4653.7,4653.6,0.964]
[1757712895840,3.65399427,4653.7,4653.6,0.964]
[1757712896340,3.43699427,4653.7,4653.6,0.964]
[1757712896541,3.65399427,4653.7,4653.6,0.964]
[1757712896741,3.23739427,4653.7,4653.6,0.964]
[1757712896943,0.02959427,4653.7,4653.6,0.964]
[1757712899753,3.2078,4654.2,4653.7,0.4086]
[1757712900043,0.217,4654.5,4654.2,0.4086]
[1757712900249,0.8931,4654.5,4654.4,0.9761]
[1757712901650,1.1597,4654.5,4654.4,0.9761]
[1757712901851,1.3282,4654.5,4654.4,0.9761]
[1757712902146,1.3282,4654.5,4654.4,0.2807]
[1757712905052,1.3282,4654.5,4654.4,0.6893]
[1757712905347,0.9427,4654.5,4654.4,0.9761]
[1757712905553,0.8931,4654.5,4654.4,0.9761]
[1757712906852,0.9304,4654.5,4654.4,0.2807]
[1757712907253,0.4953,4654.5,4654.4,0.9761]
[1757712907649,0.8931,4654.5,4654.4,0.9761]
[1757712908348,3.2078,4654.8,4654.7,0.5675]
[1757712908652,3.7031,4654.8,4654.7,0.9761]
[1757712908860,4.1505,4654.8,4654.7,0.9761]
[1757712909052,4.3675,4654.8,4654.7,0.9761]
[1757712909550,4.1505,4654.8,4654.7,0.9761]
[1757712909858,3.2078,4654.8,4654.7,4.9761]
[1757712913951,3.2078,4654.8,4654.7,5.1931]
[1757712914267,0.1685,4655.0,4654.7,4.7845]
[1757712914451,0.4622,4655.4,4654.8,4.0]
[1757712914756,0.4622,4655.4,4655.3,3.2078]
[1757712914951,0.3978,4656.3,4655.5,0.38631]
[1757712915252,0.1685,4657.0,4655.9,3.2078]
[1757712915253,0.5225,4656.0,4655.9,3.2078]
[1757712915449,0.5225,4656.0,4655.9,3.4248]
[1757712917355,0.0644,4656.9,4655.9,7.4248]
[1757712917559,0.0636,4656.9,4656.4,3.2078]
[1757712917856,0.0636,4656.9,4656.5,0.217]
[1757712918054,0.0636,4656.9,4656.5,4.217]
[1757712920960,0.1685,4657.0,4656.5,4.217]
[1757712921160,0.1685,4657.5,4656.9,3.2078]
[1757712921459,0.1685,4657.5,4657.4,3.2078]
[1757712921760,0.1685,4657.5,4657.4,3.4248]
[1757712921956,0.1685,4657.5,4657.4,3.68974438]
[1757712927066,0.588,4657.5,4657.4,3.68974438]
[1757712931871,0.8533,4657.5,4657.4,3.68974438]
[1757712932777,0.588,4657.5,4657.4,3.68974438]
[1757712934770,0.8533,4657.5,4657.4,3.68974438]
[1757712935876,0.588,4657.5,4657.4,3.68974438]
[1757712936270,1.1167,4657.5,4657.4,3.47274438]
[1757712936676,5.1167,4657.5,4657.4,3.47274438]
[1757712936876,5.1167,4657.5,4657.4,3.68974438]
[1757712938877,5.1167,4657.5,4657.4,0.26494438]
[1757712939376,1.1167,4657.5,4657.4,0.26494438]
[1757712939577,5.1167,4657.5,4657.4,0.26494438]
[1757712941777,1.1213,4656.5,4656.4,3.2078]
[1757712941977,1.1213,4656.5,4656.4,3.4248]
[1757712943279,1.1213,4656.5,4656.4,3.2078]
[1757712943577,1.1213,4656.5,4656.4,3.4248]
[1757712943773,1.1213,4656.5,4656.4,3.2078]
[1757712945579,1.1213,4656.5,4656.3,0.217]
[1757712948280,0.9736,4656.4,4656.3,0.217]
[1757712969401,1.1186,4656.0,4655.9,3.4248]
[1757712970406,1.1186,4656.0,4655.9,3.2078]
[1757712971898,1.1186,4656.0,4655.9,3.4248]
[1757712972408,1.1186,4656.0,4655.9,3.2078]
[1757712972609,1.1186,4656.0,4655.9,3.4248]
[1757712979504,1.1186,4656.0,4655.9,3.2078]
[1757712981714,1.1186,4656.0,4655.9,3.4248]
[1757712983117,1.1186,4656.0,4655.9,0.217]
[1757712984220,0.1731,4656.5,4655.9,7.42258]
[1757712984421,0.4234,4657.8,4656.4,3.2078]
[1757712984613,0.59783817,4657.7,4657.6,3.2078]
[1757712984818,1.02123817,4657.7,4657.6,3.2078]
[1757712985425,1.02123817,4657.7,4657.6,3.50469841]
[1757712985719,1.01122301,4657.7,4657.6,3.50469841]
[1757712985920,0.58782301,4657.7,4657.6,3.50469841]
[1757712986317,0.1652,4658.0,4657.6,3.50469841]
[1757712986517,0.4234,4657.9,4657.7,0.29689841]
[1757712986717,0.4234,4657.9,4657.8,0.29689841]
[1757712987414,0.9639,4657.9,4657.8,0.29689841]
[1757712988221,0.5379,4657.7,4657.1,3.2078]
[1757712988419,0.9639,4656.7,4656.6,3.2078]
[1757712988615,0.5379,4655.9,4655.8,3.605]
[1757712988818,0.5379,4655.4,4655.3,3.2078]
[1757712989022,0.9639,4655.4,4655.3,3.2078]
[1757712989822,0.9639,4655.4,4654.7,0.3972]
[1757712991732,0.9639,4655.1,4655.0,0.6606]
[1757712992826,0.9639,4655.1,4655.0,0.9443]
[1757712993029,0.169,4655.5,4655.0,0.7036]
[1757712993030,0.426,4655.5,4655.0,0.7036]
[1757712993234,0.9639,4655.5,4655.4,0.5471]
[1757712993434,0.9639,4655.5,4655.4,0.6606]
[1757712993733,0.9639,4655.5,4655.4,0.9443]
[1757712995634,0.7069,4656.0,4655.9,0.2634]
[1757712995837,1.3499,4656.0,4655.9,0.6606]
[1757712996438,1.3499,4656.0,4655.6,0.3972]
[1757712996829,1.3499,4656.0,4655.5,0.1565]
[1757712997338,1.1329,4656.0,4655.5,0.1565]
[1757712997635,1.1809,4655.9,4655.8,0.6606]
[1757712997831,1.1809,4655.9,4655.8,0.2634]
[1757712998036,1.1809,4655.9,4655.8,0.6606]
[1757712998626,0.9639,4655.9,4655.8,0.6606]
[1757712998832,1.1809,4655.9,4655.8,0.9443]
[1757713001940,0.9639,4655.9,4655.8,0.9443]
[1757713002136,1.1809,4655.9,4655.8,0.9443]
[1757713004236,0.9639,4655.9,4655.8,0.9443]
[1757713004434,1.1809,4655.9,4655.8,0.9443]
[1757713008343,4.3887,4655.9,4655.8,0.9443]
[1757713011648,4.3887,4655.9,4655.6,0.4008]
[1757713011943,4.3887,4655.9,4655.3,3.2078]
[1757713012148,0.9523,4655.8,4655.7,0.9489]
[1757713012645,0.9523,4655.8,4655.7,0.4008]
[1757713014949,0.9523,4655.8,4655.7,0.6808]
[1757713015849,1.1693,4655.8,4655.7,0.6808]
[1757713021354,1.1693,4655.8,4655.1,0.3838]
[1757713022250,0.4105,4655.4,4654.8,0.3838]
[1757713022548,0.4105,4655.4,4654.0,0.1565]
[1757713022549,0.9712,4654.9,4654.2,3.2078]
[1757713022853,0.9712,4654.4,4654.3,0.9447]
[1757713027160,1.1882,4654.4,4654.3,0.9447]
[1757713029062,0.9712,4654.4,4654.3,0.9447]
[1757713039263,0.5607,4654.4,4654.3,0.9447]
[1757713039867,0.9712,4654.4,4654.3,0.9447]
[1757713040065,0.9712,4654.4,4654.3,0.6629]
[1757713042964,1.1882,4654.4,4654.3,0.6629]
[1757713043159,1.1882,4654.4,4654.0,0.1565]
[1757713043369,1.1882,4654.4,4654.1,0.3838]
[1757713043569,1.1882,4654.4,4654.3,0.2791]
[1757713043773,1.1882,4654.4,4654.3,0.6629]
[1757713044770,1.1882,4654.4,4653.7,3.2078]
[1757713044970,0.2799,4653.9,4653.8,0.9447]
[1757713045268,0.6904,4653.9,4653.8,0.9447]
[1757713048472,0.9712,4653.9,4653.8,0.9447]
[1757713050575,1.1507,4654.5,4654.4,0.2635]
[1757713050768,1.1507,4654.5,4654.4,0.6751]
[1757713051078,1.1507,4654.5,4654.4,0.9385]
[1757713064394,0.9337,4654.5,4654.4,0.9385]
[1757713064587,1.1507,4654.5,4654.4,0.9385]
[1757713073091,0.9337,4654.5,4654.4,0.9385]
[1757713073291,1.1507,4654.5,4654.4,0.9385]